fUST/lending_fUST_20251026
["ID","MTS","AMOUNT","RATE_DAILY","PERIOD"]
[392446805,1761486643564,-500.0,0.00024789,2]
[392446806,1761486643584,-500.0,0.00024789,2]
[392446807,1761486643603,-500.0,0.00024789,2]
[392446808,1761486643621,-500.0,0.00024789,2]
[392446809,1761486643637,-351.10751459,0.00024789,2]
[392446810,1761486643653,-227.63747292,0.00024789,2]
[392446811,1761486643669,-18364.03124361,0.0002479,2]
[392446812,1761486643687,-400.0,0.0002479,2]
[392446830,1761486645783,-1019.875,0.00023347,2]
[392446831,1761486645898,-3980.125,0.00023347,2]
[392446832,1761486645908,-238.4334165,0.00023583,2]
[392446837,1761486692238,-5000000.0,0.00033482,20]
[392446838,1761486697166,-5000000.0,0.00033482,20]
[392446839,1761486700149,-2534172.89735402,0.00033482,20]
[392446840,1761486700172,-984.7712091,0.00033482,35]
[392446841,1761486700197,-711.450587,0.00033482,120]
[392446842,1761486700220,-105000.135998,0.00033482,30]
[392446843,1761486700246,-618.02,0.00033482,60]
[392446844,1761486700270,-618.02,0.00033482,60]
[392446845,1761486700294,-618.02,0.00033482,60]
[392446846,1761486700319,-618.02,0.00033482,60]
[392446847,1761486700348,-618.02,0.00033482,60]
[392446848,1761486700371,-618.02,0.00033482,60]
[392446849,1761486700396,-618.02,0.00033482,60]
[392446850,1761486700420,-618.02,0.00033482,60]
[392446851,1761486700447,-618.02,0.00033482,60]
[392446852,1761486700481,-618.02,0.00033482,60]
[392446853,1761486700513,-618.02,0.00033482,60]
[392446854,1761486700540,-618.02,0.00033482,60]
[392446855,1761486700568,-618.02,0.00033482,60]
[392446856,1761486700598,-618.02,0.00033482,60]
[392446857,1761486700625,-618.02,0.00033482,60]
[392446858,1761486700651,-618.02,0.00033482,60]
[392446859,1761486700676,-618.02,0.00033482,60]
[392446860,1761486700703,-618.02,0.00033482,60]
[392446861,1761486700729,-618.02,0.00033482,60]
[392446862,1761486700755,-618.02,0.00033482,60]
[392446863,1761486700779,-618.02,0.00033482,60]
[392446864,1761486700804,-618.02,0.00033482,60]
[392446865,1761486700829,-618.02,0.00033482,60]
[392446866,1761486700854,-618.06122882,0.00033482,60]
[392446867,1761486700878,-890483.6511,0.00033482,30]
[392446868,1761486700901,-1453814.57252306,0.00033482,20]
[392446869,1761486705944,-2603740.74996442,0.00033482,20]
[392446870,1761486705971,-872766.69416187,0.00033482,30]
[392446871,1761486705999,-500.0,0.00033482,30]
[392446872,1761486706024,-200.0,0.00033482,30]
[392446873,1761486706048,-316.50094678,0.00033482,20]
[392446880,1761486798936,1999.0,0.00030136,120]
[392446881,1761486856462,5000.0,0.0001912,9]
[392446882,1761486864819,5000.0,0.0001912,9]
[392446891,1761486941148,3389.76773074,0.00018,2]
[392446892,1761486988671,5044.0,0.00018,2]
[392446895,1761487033744,1999.0,0.00030136,120]
[392446897,1761487076452,5000.0,0.0001912,9]
[392446898,1761487084836,210.05699023,0.0001912,9]
[392446899,1761487100555,5000.0,0.00018,2]
[392446900,1761487123642,5000.0,0.00018,2]
[392446901,1761487142506,702.2906494,0.00017882,2]
[392446902,1761487146225,5000.0,0.00018,2]
[392446903,1761487169398,5000.0,0.00018,2]
[392446904,1761487191995,5000.0,0.00018,2]
[392446905,1761487214321,5000.0,0.00018,2]
[392446914,1761487236909,5000.0,0.00018,2]
[392446915,1761487259670,5000.0,0.00018,2]
[392446916,1761487268675,5000.0,0.00018,2]
[392446922,1761487277967,1999.0,0.00030136,120]
[392446923,1761487284405,2026.76529517,0.00018,2]
[392446924,1761487292461,5000.0,0.00018,2]
[392446925,1761487300395,3050.79095767,0.00018,2]
[392446926,1761487315204,5000.0,0.00018,2]
[392446927,1761487340614,5000.0,0.00018,2]
[392446928,1761487363635,312.12604063,0.00018,2]
[392446929,1761487383101,516.3,0.00014,2]
[392446930,1761487480327,566.7,0.00020104,17]
[392446931,1761487516617,1999.0,0.00030136,120]
[392446932,1761487561695,2559.05658492,0.0001911,6]
[392446933,1761487610971,1000.0,0.00018552,9]
[392446934,1761487613289,1000.0,0.00018552,9]
[392446935,1761487615531,1000.0,0.00018552,9]
[392446936,1761487617765,1000.0,0.00018552,9]
[392446937,1761487619997,1000.0,0.00018552,9]
[392446938,1761487622204,1000.0,0.00018552,9]
[392446940,1761487624434,1000.0,0.00018552,9]
[392446941,1761487626674,1000.0,0.00018552,9]
[392446942,1761487628934,500.0,0.00018552,9]
[392446945,1761487744940,1999.0,0.00030136,120]
[392447033,1761487832024,-300.0,0.0001715,2]
[392447034,1761487832035,-300.0,0.0001715,2]
[392447035,1761487832045,-300.0,0.0001715,2]
[392447036,1761487832055,-300.0,0.0001715,2]
[392447037,1761487832064,-1200.0,0.0001715,2]
[392447038,1761487832074,-300.0,0.0001715,2]
[392447039,1761487832083,-5000.0,0.00017151,2]
[392447040,1761487832093,-160.0,0.00017151,2]
[392447041,1761487832103,-284.85857162,0.00017224,2]
[392447042,1761487832113,-1000.0,0.00017324,2]
[392447043,1761487832123,-1200.0,0.00017719,2]
[392447044,1761487832133,-12036.35878858,0.0001772,2]
[392447045,1761487832142,-2745.7118619,0.00018,2]
[392447046,1761487832152,-263.00198397,0.00018199,2]
[392447047,1761487832162,-500.0,0.00018199,2]
[392447048,1761487832172,-500.0,0.00018199,2]
[392447049,1761487832181,-500.0,0.00018199,2]
[392447050,1761487832190,-500.0,0.00018199,2]
[392447051,1761487832199,-500.0,0.00018199,2]
[392447052,1761487832209,-500.0,0.00018199,2]
[392447053,1761487832219,-500.0,0.00018199,2]
[392447054,1761487832228,-168.89409136,0.00018199,2]
[392447055,1761487832237,-500.0,0.00018199,2]
[392447056,1761487832246,-500.0,0.00018199,2]
[392447057,1761487832256,-500.0,0.00018199,2]
[392447058,1761487832265,-500.0,0.00018199,2]
[392447059,1761487832275,-500.0,0.00018199,2]
[392447060,1761487832284,-200.0,0.000182,2]
[392447061,1761487832293,-2745.7118619,0.000182,2]
[392447062,1761487832302,-12727.46930456,0.00018399,2]
[392447063,1761487832311,-2745.7118619,0.000184,2]
[392447064,1761487832320,-331.18569246,0.00018499,2]
[392447065,1761487832330,-175.26281086,0.00018499,2]
[392447066,1761487832339,-2745.7118619,0.000185,2]
[392447067,1761487832348,-2745.7118619,0.000187,2]
[392447068,1761487832357,-300.0,0.00018729,2]
[392447069,1761487832367,-420.0,0.00018729,2]
[392447070,1761487832376,-300.0,0.00018729,2]
[392447071,1761487832385,-300.0,0.00018729,2]
[392447072,1761487832394,-300.0,0.00018729,2]
[392447073,1761487832404,-1680.0,0.00018822,2]
[392447074,1761487832413,-2745.7118619,0.000189,2]
[392447075,1761487832423,-160.0,0.00019006,2]
[392447076,1761487832432,-2745.7118619,0.000191,2]
[392447077,1761487832442,-1534.68,0.00019174,2]
[392447078,1761487832451,-5000.0,0.00019178,2]
[392447079,1761487832460,-5000.0,0.00019178,2]
[392447080,1761487832469,-5000.0,0.00019178,2]
[392447081,1761487832479,-2974.25240064,0.00019178,2]
[392447082,1761487832489,-2745.7118619,0.000193,2]
[392447083,1761487832498,-500.0,0.000193,2]
[392447084,1761487832508,-2745.7118619,0.000195,2]
[392447085,1761487832517,-387.84,0.00019544,2]
[392447086,1761487832526,-3069.37,0.00019642,2]
[392447087,1761487832535,-5000.0,0.00019644,2]
[392447088,1761487832544,-2745.7118619,0.000197,2]
[392447089,1761487832552,-444.96414427,0.00019883,2]
[392447090,1761487832561,-4604.05,0.0002011,2]
[392447091,1761487832570,-587.0,0.00020453,2]
[392447092,1761487832579,-5000.0,0.00020457,2]
[392447093,1761487832589,-160.0,0.00020487,2]
[392447094,1761487832598,-323.0,0.00020516,2]
[392447095,1761487832608,-6138.74,0.00020577,2]
[392447096,1761487832618,-720.0,0.00020656,2]
[392447097,1761487832627,-160.0,0.00020966,2]
[392447098,1761487832637,-500.0,0.00020974,2]
[392447099,1761487832646,-500.0,0.00020974,2]
[392447100,1761487832655,-3000.0,0.00021,2]
[392447101,1761487832664,-3000.0,0.0002101,2]
[392447102,1761487832674,-3000.0,0.0002102,2]
[392447103,1761487832683,-500.0,0.00021029,2]
[392447104,1761487832692,-500.0,0.00021029,2]
[392447105,1761487832701,-3000.0,0.0002103,2]
[392447106,1761487832711,-3000.0,0.0002104,2]
[392447107,1761487832720,-7673.42,0.00021045,2]
[392447108,1761487832730,-3000.0,0.0002105,2]
[392447109,1761487832742,-514.92,0.0002105,3]
[392447110,1761487832751,-3000.0,0.0002106,2]
[392447111,1761487832760,-171.64,0.0002106,3]
[392447112,1761487832771,-3000.0,0.0002107,2]
[392447113,1761487832780,-3000.0,0.0002108,2]
[392447114,1761487832789,-500.0,0.00021084,2]
[392447115,1761487832799,-500.0,0.00021084,2]
[392447116,1761487832809,-3000.0,0.0002109,2]
[392447117,1761487832818,-3000.0,0.000211,2]
[392447118,1761487832827,-258.016791,0.000211,10]
[392447119,1761487832839,-155.84497,0.000211,10]
[392447120,1761487832848,-343.28,0.000211,3]
[392447121,1761487832857,-505.04081433,0.000211,2]
[392447122,1761487832867,-3000.0,0.0002111,2]
[392447123,1761487832878,-686.56,0.0002111,3]
[392447124,1761487832888,-3000.0,0.0002112,2]
[392447125,1761487832898,-3000.0,0.0002113,2]
[392447126,1761487832908,-302.79844391,0.00021138,2]
[392447127,1761487832920,-197.20155609,0.00021138,2]
[392447128,1761487832930,-500.0,0.00021138,2]
[392447129,1761487832939,-3000.0,0.0002114,2]
[392447130,1761487832948,-3000.0,0.0002115,2]
[392447131,1761487832959,-3000.0,0.0002116,2]
[392447132,1761487832969,-3000.0,0.0002117,2]
[392447133,1761487832978,-151.75831528,0.0002117,2]
[392447134,1761487832987,-3000.0,0.0002118,2]
[392447135,1761487832996,-160.0,0.00021183,2]
[392447136,1761487833005,-1342.51512863,0.0002119,2]
[392447146,1761487837826,-500.0,0.00017999,2]
[392447147,1761487837836,-185.43267682,0.00017999,2]
[392447148,1761487837847,-1657.48487137,0.0002119,2]
[392447149,1761487837857,-500.0,0.00021193,2]
[392447150,1761487837868,-500.0,0.00021193,2]
[392447151,1761487837878,-3000.0,0.000212,2]
[392447152,1761487837889,-3000.0,0.0002121,2]
[392447153,1761487837904,-2924.08245177,0.0002122,2]
[392447154,1761487837917,-75.91754823,0.0002122,2]
[392447155,1761487837928,-798.63954631,0.0002123,2]
[392447156,1761487837942,-3197.18973189,0.0002123,2]
[392447159,1761487837962,-279.15,0.0002123,2]
[392447168,1761487840274,-5000.0,0.00020978,6]
[392447169,1761487840283,-574.7337138,0.0002123,2]
[392447170,1761487840292,-500.0,0.00021248,2]
[392447171,1761487840301,-500.0,0.00021248,2]
[392447172,1761487840310,-4981.76439664,0.00021269,2]
[392447173,1761487840378,-18.23560336,0.00021269,2]
[392447174,1761487840388,-500.0,0.00021303,2]
[392447175,1761487840396,-500.0,0.00021303,2]
[392447176,1761487840405,-484.60873191,0.00021358,2]
[392447177,1761487840414,-500.0,0.00021358,2]
[392447178,1761487840423,-500.0,0.00021412,2]
[392447179,1761487840432,-500.0,0.00021467,2]
[392447180,1761487840441,-258.016791,0.000215,2]
[392447181,1761487840450,-155.84497,0.000215,2]
[392447182,1761487840459,-9208.11,0.00021513,2]
[392447183,1761487840468,-500.0,0.00021522,2]
[392447184,1761487840477,-444.96414427,0.00021571,3]
[392447185,1761487840486,-500.0,0.00021577,2]
[392447186,1761487840497,-500.0,0.00021632,2]
[392447187,1761487840509,-245.17326971,0.00021686,2]
[392447188,1761487840518,-260.0,0.00021731,2]
[392447189,1761487840527,-160.0,0.00021969,2]
[392447190,1761487840536,-10742.79,0.0002198,2]
[392447191,1761487840545,-15357.92,0.00022,7]
[392447192,1761487840555,-5000.0,0.00022082,2]
[392447193,1761487840564,-360.0,0.00022279,2]
[392447194,1761487840573,-823.0,0.00022336,2]
[392447195,1761487840582,-343.28,0.0002243,3]
[392447196,1761487840591,-5575.429775,0.00022448,2]
[392447212,1761487843711,-415.07431893,0.00022448,2]
[392447213,1761487843722,-4567.85096089,0.00022448,2]
[392447214,1761487843737,-1719.12494518,0.00022448,2]
[392447215,1761487843746,-686.56,0.0002247,3]
[392447216,1761487843755,-1373.12,0.0002248,3]
[392447217,1761487843764,-190.70569266,0.00022761,2]
[392447218,1761487843776,-510.7241531,0.00022761,2]
[392447250,1761487846021,-188.90625158,0.00022761,2]
[392447251,1761487846030,-3557.78304499,0.00022761,2]
[392447252,1761487846039,-181.28347362,0.00022761,2]
[392447253,1761487846048,-724.40876059,0.00022761,2]
[392447254,1761487846057,-174.49891641,0.00022785,2]
[392447255,1761487846066,-460.0,0.00022827,2]
[392447256,1761487846075,-258.016791,0.00022838,10]
[392447257,1761487846084,-155.84497,0.00022838,10]
[392447258,1761487846093,-5000.0,0.00022895,2]
[392447259,1761487846102,-13812.16,0.00022916,2]
[392447260,1761487846111,-151.75831528,0.00022985,2]
[392447261,1761487846120,-162.0,0.00023,7]
[392447262,1761487846129,-444.96414427,0.00023259,4]
[392447263,1761487846138,-3982.82,0.00023278,10]
[392447264,1761487846147,-95000.0,0.00023288,30]
[392447265,1761487846156,-560.0,0.00023375,2]
[392447266,1761487846165,-15346.85,0.00023383,2]
[392447267,1761487846174,-160.0,0.0002345,2]
[392447268,1761487846183,-553.00544775,0.00023485,2]
[392447269,1761487846192,-6345.8856409,0.00023583,2]
[392447270,1761487846202,-12070.23304003,0.00023607,2]
[392447271,1761487846211,-5000.0,0.00023707,2]
[392447272,1761487846220,-168.0,0.00023824,2]
[392447273,1761487846229,-15357.92,0.000239,7]
[392447274,1761487846238,-258.016791,0.00023918,2]
[392447275,1761487846248,-155.84497,0.00023918,2]
[392447276,1761487846257,-660.0,0.00023923,2]
[392447277,1761487846266,-5667.08977438,0.0002399,2]
[392447278,1761487846275,-500.0,0.00023992,2]
[392447279,1761487846285,-584.93,0.00024,2]
[392447280,1761487846294,-254.6351356,0.00024026,2]
[392447281,1761487846303,-1017.52200186,0.00024026,2]
[392447282,1761487846313,-205.79472232,0.00024052,2]
[392447283,1761487846322,-500.0,0.00024197,2]
[392447284,1761487846331,-309.54977441,0.00024227,2]
[392447285,1761487846342,-1236.96089854,0.00024227,2]
[392447286,1761487846351,-254.0,0.00024289,2]
[392447287,1761487846360,-1152.0,0.00024392,2]
[392447288,1761487846370,-760.0,0.00024471,2]
[392447289,1761487846379,-168.0,0.0002449,2]
[392447290,1761487846388,-5000.0,0.0002452,2]
[392447291,1761487846397,-1886.42923476,0.00024531,2]
[392447292,1761487846406,-249.0,0.00024537,2]
[392447293,1761487846415,-253.0,0.00024541,2]
[392447294,1761487846424,-258.016791,0.00024575,10]
[392447295,1761487846434,-155.84497,0.00024575,10]
[392447296,1761487846443,-249.0,0.00024578,2]
[392447297,1761487846452,-249.0,0.00024618,7]
[392447298,1761487846461,-868.5493448,0.00024657,2]
[392447299,1761487846470,-500.0,0.00024658,5]
[392447300,1761487846479,-757.0,0.00024658,2]
[392447301,1761487846488,-500.0,0.00024673,2]
[392447302,1761487846497,-501.17552755,0.00024673,2]
[392447303,1761487846506,-500.0,0.00024673,2]
[392447304,1761487846515,-503.0753176,0.00024673,2]
[392447305,1761487846524,-500.83640299,0.00024673,2]
[392447306,1761487846533,-163.91562303,0.00024673,2]
[392447307,1761487846541,-500.0,0.00024673,2]
[392447308,1761487846551,-500.0,0.00024673,2]
[392447309,1761487846559,-500.0,0.00024673,2]
[392447310,1761487846568,-500.0,0.00024673,2]
[392447311,1761487846662,-500.0,0.00024673,2]
[392447312,1761487846671,-500.0,0.00024673,2]
[392447313,1761487846680,-500.0,0.00024673,2]
[392447314,1761487846689,-370000.0,0.0002469,2]
[392447315,1761487846699,-757.0,0.00024713,2]
[392447316,1761487846707,-253.0,0.0002472,7]
[392447317,1761487846716,-249.0,0.0002473,7]
[392447318,1761487846728,-757.0,0.00024768,2]
[392447319,1761487846736,-151.75831528,0.000248,2]
[392447320,1761487846746,-178.79337691,0.0002481,2]
[392447321,1761487846755,-757.0,0.00024822,2]
[392447322,1761487846765,-984.0,0.00024867,2]
[392447323,1761487846775,-632.0,0.00024867,2]
[392447324,1761487846787,-2166.0,0.00024867,2]
[392447325,1761487846800,-500.0,0.00024873,2]
[392447326,1761487846811,-500.0,0.00024873,2]
[392447327,1761487846822,-500.0,0.00024873,2]
[392447328,1761487846833,-342.955187,0.00024873,2]
[392447329,1761487846843,-500.0,0.00024873,2]
[392447330,1761487846854,-500.0,0.00024873,2]
[392447331,1761487846866,-500.0,0.00024873,2]
[392447332,1761487846877,-500.0,0.00024873,2]
[392447333,1761487846887,-500.0,0.00024873,2]
[392447334,1761487846899,-500.0,0.00024873,2]
[392447335,1761487846910,-500.0,0.00024873,2]
[392447336,1761487846920,-500.0,0.00024873,2]
[392447337,1761487846930,-500.0,0.00024873,2]
[392447338,1761487846939,-500.0,0.00024873,2]
[392447339,1761487846950,-500.0,0.00024873,2]
[392447340,1761487846960,-356.23196044,0.00024873,2]
[392447341,1761487846971,-500.0,0.00024873,2]
[392447342,1761487846982,-500.69189299,0.00024873,2]
[392447343,1761487846991,-500.0,0.00024873,2]
[392447344,1761487847001,-501.99488916,0.00024873,2]
[392447345,1761487847010,-500.0,0.00024873,2]
[392447346,1761487847019,-500.0,0.00024873,2]
[392447347,1761487847030,-500.0,0.00024873,2]
[392447348,1761487847040,-502.84866969,0.00024873,2]
[392447349,1761487847052,-500.0,0.00024873,2]
[392447350,1761487847062,-500.0,0.00024873,2]
[392447351,1761487847072,-500.0,0.00024873,2]
[392447352,1761487847082,-500.0,0.00024873,2]
[392447353,1761487847091,-500.0,0.00024873,2]
[392447354,1761487847100,-500.0,0.00024873,2]
[392447355,1761487847110,-500.0,0.00024873,2]
[392447356,1761487847120,-500.66433682,0.00024873,2]
[392447357,1761487847129,-500.0,0.00024873,2]
[392447358,1761487847138,-500.0,0.00024873,2]
[392447359,1761487847147,-502.14300269,0.00024873,2]
[392447360,1761487847157,-575.15726773,0.00024873,2]
[392447361,1761487847167,-500.0,0.00024873,2]
[392447362,1761487847176,-500.0,0.00024873,2]
[392447363,1761487847186,-500.0,0.00024873,2]
[392447364,1761487847196,-500.0,0.00024873,2]
[392447365,1761487847205,-500.0,0.00024873,2]
[392447366,1761487847215,-503.85419549,0.00024873,2]
[392447367,1761487847225,-500.0,0.00024873,2]
[392447368,1761487847236,-500.0,0.00024873,2]
[392447369,1761487847246,-500.0,0.00024873,2]
[392447370,1761487847257,-502.21783609,0.00024873,2]
[392447371,1761487847266,-500.0,0.00024873,2]
[392447372,1761487847278,-501.68215339,0.00024873,2]
[392447373,1761487847288,-757.0,0.00024877,2]
[392447374,1761487847298,-15381.29878584,0.000249,2]
[392447375,1761487847308,-170547.88122244,0.000249,2]
[392447376,1761487847754,-1022.825,0.000249,2]
[392447377,1761487862261,5000.0,0.0001911,6]
[392447378,1761487898492,293.8,0.000201,30]
[392447381,1761488002567,1999.0,0.00030136,120]
[392447382,1761488081733,4626.23100704,0.0001911,6]
[392447383,1761488138889,209.0,0.00030137,120]
[392447481,1761488243036,1999.0,0.00030136,120]
[392447510,1761488284034,10000.0,0.0001479,2]
[392447511,1761488301197,0.01,0.0001479,2]
[392447512,1761488301218,9372.99,0.0001479,2]
[392447513,1761488466599,1999.0,0.00030136,120]
[392447517,1761488542178,165.658393,0.00013699,2]
[392447518,1761488575497,390.54310535,0.0001911,6]
[392447519,1761488704737,1999.0,0.00030136,120]
[392447545,1761488896935,2262.55439715,0.0002,30]
[392447547,1761488909681,1525.20659614,0.0002,30]
[392447549,1761488916782,3726.02370478,0.0002,30]
[392447554,1761488945513,1999.0,0.00030136,120]
[392447626,1761489032275,-200.0,0.000178,2]
[392447628,1761489032284,-273.96637246,0.00017994,2]
[392447630,1761489032295,-129.52819163,0.00017994,2]
[392447632,1761489032304,-300.0,0.00017999,2]
[392447634,1761489032313,-155.11003104,0.00017999,2]
[392447641,1761489032368,-144.88996896,0.00017999,2]
[392447643,1761489032377,-300.0,0.00017999,2]
[392447645,1761489032387,-1200.0,0.00017999,2]
[392447647,1761489032396,-300.0,0.00017999,2]
[392447649,1761489032405,-300.0,0.00017999,2]
[392447651,1761489032415,-165.99985449,0.00018,2]
[392447653,1761489032424,-233.63436279,0.00018,2]
[392447655,1761489032434,-164.53979294,0.00018,2]
[392447657,1761489032444,-4519.23117857,0.00018,2]
[392447659,1761489032453,-3710.70484225,0.00018,2]
[392447670,1761489038188,-540.75,0.00018,2]
[392447671,1761489038199,-2786.73286585,0.00018,2]
[392447672,1761489038208,-171.91579903,0.00018,2]
[392447673,1761489038217,-171.38652339,0.00018,2]
[392447674,1761489038226,-598.7499071,0.00018,2]
[392447675,1761489038235,-189.9694027,0.00018,2]
[392447676,1761489038244,-3194.36005995,0.00018082,2]
[392447681,1761489040289,-1326.66510949,0.00018082,2]
[392447726,1761489043259,-543.36835326,0.00018082,2]
[392447727,1761489043269,-260.40390751,0.00018095,2]
[392447728,1761489043350,-22.14334059,0.00018095,2]
[392447729,1761489043360,-165.99985449,0.000182,2]
[392447730,1761489043369,-233.63436279,0.000182,2]
[392447731,1761489043378,-164.53979294,0.000182,2]
[392447732,1761489043387,-171.38652339,0.000182,2]
[392447733,1761489043396,-598.7499071,0.000182,2]
[392447734,1761489043406,-171.91579903,0.000182,2]
[392447735,1761489043415,-165.99985449,0.000184,2]
[392447736,1761489043424,-598.7499071,0.000184,2]
[392447737,1761489043433,-598.7499071,0.000185,2]
[392447738,1761489043442,-460.41,0.00019061,2]
[392447739,1761489043451,-640.69659131,0.00019078,2]
[392447753,1761489046287,-566.02750386,0.000179,2]
[392447755,1761489046296,-322.31216059,0.00019078,2]
[392447757,1761489046305,-79.03624786,0.00019176,2]
[392447759,1761489046317,-420.96375214,0.00019176,2]
[392447761,1761489046326,-158.3396506,0.00019176,2]
[392447762,1761489046335,-175.36166218,0.00019176,2]
[392447764,1761489046344,-500.0,0.00019176,2]
[392447766,1761489046355,-500.0,0.00019176,2]
[392447768,1761489046364,-500.0,0.00019176,2]
[392447770,1761489046374,-500.0,0.00019176,2]
[392447772,1761489046384,-402.50663545,0.00019176,2]
[392447773,1761489046393,-500.0,0.00019176,2]
[392447774,1761489046402,-231.28521013,0.00019176,2]
[392447776,1761489046411,-500.0,0.00019176,2]
[392447778,1761489046421,-444.82305439,0.00019176,2]
[392447780,1761489046430,-5000.0,0.00019178,2]
[392447782,1761489046439,-899.73157081,0.00019178,2]
[392447783,1761489046476,-914.50681172,0.00019178,2]
[392447784,1761489108009,-285.07570389,0.0002045,30]
[392447785,1761489150361,-1714.92429611,0.00024,60]
[392447788,1761489182071,1999.0,0.00030136,120]
[392447790,1761489445303,1999.0,0.00030136,120]
[392447791,1761489527041,20963.20538468,0.0003,120]
[392447793,1761489663239,1999.0,0.00030136,120]
[392447800,1761489913076,1999.0,0.00030136,120]
[392447817,1761490124180,461.361607,0.00013699,2]
[392447818,1761490124204,285.524524,0.00013699,2]
[392447845,1761490164238,1999.0,0.00030136,120]
[392447888,1761490232409,-319.80286379,0.000179,2]
[392447975,1761490238359,-246.22464007,0.000179,2]
[392447976,1761490238369,-630.8406765,0.000179,2]
[392447977,1761490238379,-13.08673488,0.00017996,2]
[392447978,1761490238391,-281.00478041,0.00017996,2]
[392447979,1761490238411,-5.90848471,0.00017996,2]
[392447980,1761490238424,-300.0,0.00017997,2]
[392447981,1761490238434,-95.38571249,0.00017997,2]
[392447982,1761490238445,-204.61428751,0.00017997,2]
[392447983,1761490238455,-62.37262609,0.00017997,2]
[392447984,1761490238468,-291.300155,0.00017997,2]
[392447985,1761490238479,-846.32721891,0.00017997,2]
[392447986,1761490238488,-300.0,0.00017997,2]
[392447987,1761490238500,-403.49456409,0.00017998,2]
[392447988,1761490238510,-197.44775153,0.00018,2]
[392447989,1761490238519,-298.79973809,0.00018,2]
[392447990,1761490238529,-280.36123535,0.00018,2]
[392447991,1761490238538,-1094.65254395,0.00018,2]
[392447992,1761490238548,-14.02240354,0.00018,2]
[392447993,1761490238559,-185.56089883,0.00018,2]
[392447994,1761490238568,-3603.1611639,0.00018,2]
[392448026,1761490240867,-372.57046197,0.00018,2]
[392448028,1761490240876,-21.41061391,0.000181,2]
[392448034,1761490240925,-544.61688995,0.000181,2]
[392448036,1761490240934,-197.44775153,0.000182,2]
[392448038,1761490240943,-298.79973809,0.000182,2]
[392448040,1761490240952,-280.36123535,0.000182,2]
[392448042,1761490240962,-1094.65254395,0.000182,2]
[392448044,1761490240971,-199.58330237,0.000182,2]
[392448046,1761490240980,-566.02750386,0.000183,2]
[392448048,1761490240990,-197.44775153,0.000184,2]
[392448050,1761490240999,-298.79973809,0.000184,2]
[392448052,1761490241009,-280.36123535,0.000184,2]
[392448054,1761490241018,-395.5926255,0.000184,2]
[392448056,1761490241029,-429.42624312,0.000184,2]
[392448075,1761490243515,-269.63367533,0.000184,2]
[392448076,1761490243525,-199.58330237,0.000184,2]
[392448077,1761490243535,-197.44775153,0.000185,2]
[392448078,1761490243544,-298.79973809,0.000185,2]
[392448079,1761490243555,-280.36123535,0.000185,2]
[392448080,1761490243564,-1094.65254395,0.000185,2]
[392448081,1761490243574,-566.02750386,0.000185,2]
[392448082,1761490243583,-882.92167796,0.000186,2]
[392448083,1761490243594,-500.0,0.00018694,2]
[392448084,1761490243605,-431.92961853,0.00018694,2]
[392448085,1761490243615,-295.31370295,0.00018694,2]
[392448086,1761490243638,-55.36955095,0.00018694,2]
[392448087,1761490243647,-359.63044905,0.00018694,2]
[392448098,1761490246568,-140.36955095,0.00018694,2]
[392448099,1761490246577,-500.0,0.00018694,2]
[392448100,1761490246586,-500.0,0.00018694,2]
[392448101,1761490246595,-500.0,0.00018694,2]